fUST/lending_fUST_20240607
["ID","MTS","AMOUNT","RATE_DAILY","PERIOD"]
[328677476,1717692649676,-500.0,0.00024931,2]
[328677478,1717692649685,-500.0,0.00024931,2]
[328677480,1717692649694,-502.41401883,0.00024931,2]
[328677482,1717692649703,-500.0,0.00024931,2]
[328677484,1717692649712,-502.05030495,0.00024931,2]
[328677486,1717692649721,-500.0,0.00024931,2]
[328677488,1717692649731,-501.35645864,0.00024931,2]
[328677490,1717692649740,-529.74141175,0.00024931,2]
[328677492,1717692649750,-500.0,0.00024931,2]
[328677494,1717692649759,-500.0,0.00024931,2]
[328677496,1717692649768,-224.43702884,0.00024931,2]
[328677498,1717692649777,-525.2668027,0.00024931,2]
[328677500,1717692649786,-500.0,0.00024931,2]
[328677502,1717692649796,-526.02175001,0.00024931,2]
[328677504,1717692649805,-805.31,0.00024931,2]
[328677506,1717692649814,-274.70522085,0.00024931,2]
[328677508,1717692649824,-500.0,0.00024931,2]
[328677510,1717692649835,-500.0,0.00024931,2]
[328677513,1717692649845,-502.91577793,0.00024931,2]
[328677515,1717692649865,-500.0,0.00024931,2]
[328677517,1717692649875,-500.0,0.00024931,2]
[328677519,1717692649884,-500.0,0.00024931,2]
[328677521,1717692649894,-500.0,0.00024931,2]
[328677523,1717692649904,-503.24138287,0.00024931,2]
[328677525,1717692649921,-500.0,0.00024931,2]
[328677527,1717692649934,-500.0,0.00024931,2]
[328677529,1717692649948,-532.94649179,0.00024931,2]
[328677531,1717692649958,-502.77358706,0.00024931,2]
[328677533,1717692649968,-186.53543359,0.00024931,2]
[328677535,1717692649978,-302.52447848,0.00024931,2]
[328677538,1717692649993,-197.47552152,0.00024931,2]
[328677540,1717692650004,-500.0,0.00024931,2]
[328677542,1717692650013,-1000.0,0.00024931,2]
[328677544,1717692650023,-500.0,0.00024931,2]
[328677546,1717692650032,-500.0,0.00024931,2]
[328677548,1717692650042,-500.0,0.00024931,2]
[328677550,1717692650051,-500.0,0.00024931,2]
[328677552,1717692650061,-500.0,0.00024931,2]
[328677554,1717692650070,-500.0,0.00024931,2]
[328677572,1717692650235,-502.32688279,0.00024931,2]
[328677574,1717692650244,-501.62264052,0.00024931,2]
[328677576,1717692650254,-479.94285357,0.00024931,2]
[328677983,1717693588330,1000.0,0.00025,60]
[328677985,1717693626779,592.0,0.00025192,90]
[328677986,1717693630239,-166.666666,0.00022788,2]
[328677987,1717693630261,-173.64616331,0.000229,2]
[328677988,1717693630282,-5009.0666733,0.00023093,2]
[328677989,1717693630302,-3473.3631347,0.00023262,2]
[328677990,1717693630325,-200.0,0.0002411,2]
[328677991,1717693630345,-166.666666,0.00024493,2]
[328677992,1717693630365,-341.42952859,0.00024556,2]
[328677993,1717693630387,-341.42952857,0.00024557,2]
[328677994,1717693630410,-12769.13508737,0.00024557,3]
[328677995,1717693630431,-341.42952857,0.00024557,2]
[328677996,1717693630452,-36.63296817,0.00024655,2]
[328678030,1717693832489,-155.27379764,0.00023422,2]
[328678032,1717693832499,-88888.0,0.00024557,3]
[328678034,1717693832508,-2726.14050886,0.00024655,2]
[328678036,1717693832518,-762.31742008,0.00024655,2]
[328678038,1717693832527,-258.49146212,0.00024655,2]
[328678040,1717693832539,-44.52454454,0.00024655,2]
[328678042,1717693832548,-2616.15986812,0.00024656,2]
[328678045,1717693832558,-500.0,0.00024656,2]
[328678047,1717693832567,-500.0,0.00024656,2]
[328678050,1717693832576,-500.0,0.00024656,2]
[328678053,1717693832586,-500.0,0.00024656,2]
[328678055,1717693832595,-500.0,0.00024656,2]
[328678058,1717693832605,-500.0,0.00024656,2]
[328678061,1717693832615,-500.0,0.00024656,2]
[328678063,1717693832626,-178.92471784,0.00024656,2]
[328678067,1717693832639,-321.07528216,0.00024656,2]
[328678069,1717693832648,-500.0,0.00024656,2]
[328678072,1717693832657,-310.44531256,0.00024656,2]
[328678125,1717693838740,-500.0,0.00024556,2]
[328678126,1717693838751,-500.0,0.00024556,2]
[328678128,1717693838761,-500.0,0.00024556,2]
[328678129,1717693838771,-500.0,0.00024556,2]
[328678130,1717693838781,-500.0,0.00024556,2]
[328678131,1717693838792,-500.0,0.00024556,2]
[328678132,1717693838804,-500.0,0.00024556,2]
[328678133,1717693838814,-500.0,0.00024556,2]
[328678134,1717693838824,-173.7231877,0.00024556,2]
[328678135,1717693838834,-488.57469182,0.00024556,2]
[328678136,1717693838846,-500.0,0.00024556,2]
[328678137,1717693838856,-500.0,0.00024556,2]
[328678138,1717693838866,-500.0,0.00024556,2]
[328678139,1717693838877,-500.0,0.00024556,2]
[328678140,1717693838888,-500.0,0.00024556,2]
[328678141,1717693838897,-500.0,0.00024556,2]
[328678142,1717693838906,-500.0,0.00024556,2]
[328678143,1717693838916,-500.0,0.00024556,2]
[328678144,1717693838926,-500.0,0.00024556,2]
[328678145,1717693838935,-500.0,0.00024556,2]
[328678146,1717693838945,-500.0,0.00024556,2]
[328678147,1717693838955,-500.0,0.00024556,2]
[328678148,1717693838964,-500.0,0.00024556,2]
[328678149,1717693838974,-318.2021205,0.00024556,2]
[328678150,1717693838986,-181.7978795,0.00024556,2]
[328678151,1717693838995,-500.0,0.00024556,2]
[328678152,1717693839004,-509.19340615,0.00024556,2]
[328678153,1717693839014,-500.0,0.00024556,2]
[328678154,1717693839024,-500.0,0.00024556,2]
[328678155,1717693839034,-500.0,0.00024655,2]
[328678156,1717693839044,-309.48408941,0.00024655,2]
[328678157,1717693839055,-166.93979045,0.00024655,2]
[328678158,1717693839065,-500.0,0.00024655,2]
[328678159,1717693839075,-453.221048,0.00024655,2]
[328678160,1717693839086,-481.09668039,0.00024655,2]
[328678161,1717693839096,-459.52101017,0.00024655,2]
[328678162,1717693839106,-500.0,0.00024655,2]
[328678163,1717693839116,-450.17887943,0.00024655,2]
[328678164,1717693839127,-363.47860887,0.00024655,2]
[328678165,1717693839138,-500.0,0.00024655,2]
[328678166,1717693839148,-500.0,0.00024655,2]
[328678167,1717693839157,-519.65520058,0.00024655,2]
[328678168,1717693839168,-450.29130368,0.00024657,2]
[328678169,1717693839178,-500.0,0.00024657,2]
[328678170,1717693839188,-500.0,0.00024657,2]
[328678171,1717693839198,-500.0,0.00024657,2]
[328678172,1717693839208,-500.0,0.00024657,2]
[328678173,1717693839219,-500.0,0.00024657,2]
[328678174,1717693839229,-500.0,0.00024657,2]
[328678175,1717693839239,-500.0,0.00024657,2]
[328678176,1717693839249,-500.0,0.00024657,2]
[328678177,1717693839260,-500.0,0.00024657,2]
[328678178,1717693839270,-500.0,0.00024657,2]
[328678179,1717693839282,-500.0,0.00024657,2]
[328678180,1717693839292,-500.0,0.00024657,2]
[328678181,1717693839303,-298.84328298,0.00024657,2]
[328678182,1717693839314,-500.0,0.00024657,2]
[328678183,1717693839324,-500.0,0.00024657,2]
[328678184,1717693839334,-500.0,0.00024657,2]
[328678185,1717693839344,-500.0,0.00024657,2]
[328678186,1717693839354,-429.12829849,0.00024657,2]
[328678187,1717693839468,-70.87170151,0.00024657,2]
[328678188,1717693839479,-500.0,0.00024657,2]
[328678189,1717693839489,-500.0,0.00024657,2]
[328678190,1717693839499,-500.0,0.00024657,2]
[328678191,1717693839508,-500.0,0.00024657,2]
[328678192,1717693839519,-500.0,0.00024657,2]
[328678193,1717693839529,-500.0,0.00024657,2]
[328678194,1717693839539,-500.0,0.00024657,2]
[328678195,1717693839548,-500.0,0.00024657,2]
[328678196,1717693839558,-549.45743718,0.00024657,2]
[328678197,1717693839568,-500.0,0.00024657,2]
[328678198,1717693839578,-500.0,0.00024657,2]
[328678199,1717693839588,-500.0,0.00024657,2]
[328678200,1717693839598,-526.4874988,0.00024657,2]
[328678201,1717693839609,-500.0,0.00024657,2]
[328678202,1717693839620,-500.0,0.00024657,2]
[328678203,1717693839631,-503.56432064,0.00024657,2]
[328678204,1717693839642,-500.0,0.00024657,2]
[328678205,1717693839654,-501.72878993,0.00024657,2]
[328678206,1717693839664,-515.21664899,0.00024657,2]
[328678207,1717693839674,-502.4187492,0.00024657,2]
[328678208,1717693839684,-500.0,0.00024657,2]
[328678209,1717693839695,-500.0,0.00024657,2]
[328678210,1717693839704,-500.0,0.00024657,2]
[328678211,1717693839715,-582.32053692,0.00024657,2]
[328678212,1717693839725,-500.0,0.00024657,2]
[328678213,1717693839735,-500.0,0.00024657,2]
[328678214,1717693839746,-500.0,0.00024657,2]
[328678215,1717693839756,-500.93257713,0.00024657,2]
[328678216,1717693839766,-738.5,0.00024657,2]
[328678217,1717693839776,-500.0,0.00024657,2]
[328678218,1717693839786,-502.65214028,0.00024657,2]
[328678219,1717693839800,-500.89763839,0.00024657,2]
[328678220,1717693839810,-500.0,0.00024657,2]
[328678221,1717693839820,-500.0,0.00024657,2]
[328678222,1717693839830,-500.0,0.00024657,2]
[328678223,1717693839841,-500.0,0.00024657,2]
[328678224,1717693839852,-422.70219657,0.00024657,2]
[328678225,1717693839862,-500.0,0.00024657,2]
[328678226,1717693839874,-500.0,0.00024657,2]
[328678227,1717693839883,-554.88,0.00024657,2]
[328678228,1717693839893,-500.0,0.00024657,2]
[328678229,1717693839903,-500.0,0.00024657,2]
[328678230,1717693839912,-500.0,0.00024657,2]
[328678231,1717693839922,-500.0,0.00024657,2]
[328678232,1717693839932,-500.0,0.00024657,2]
[328678233,1717693839942,-500.0,0.00024657,2]
[328678235,1717693839952,-500.0,0.00024657,2]
[328678237,1717693839962,-869.99,0.00024657,2]
[328678238,1717693839972,-500.0,0.00024657,2]
[328678239,1717693839982,-500.0,0.00024657,2]
[328678240,1717693839992,-500.0,0.00024657,2]
[328678241,1717693840002,-500.0,0.00024657,2]
[328678242,1717693840012,-500.0,0.00024657,2]
[328678243,1717693840022,-500.0,0.00024657,2]
[328678244,1717693840033,-500.0,0.00024657,2]
[328678245,1717693840043,-500.0,0.00024657,2]
[328678246,1717693840053,-500.0,0.00024657,2]
[328678247,1717693840063,-500.0,0.00024657,2]
[328678248,1717693840072,-500.0,0.00024657,2]
[328678249,1717693840082,-500.0,0.00024657,2]
[328678250,1717693840092,-510.54717067,0.00024657,2]
[328678251,1717693840102,-500.0,0.00024657,2]
[328678252,1717693840112,-699.65,0.00024657,2]
[328678253,1717693840122,-500.0,0.00024657,2]
[328678254,1717693840132,-500.0,0.00024657,2]
[328678255,1717693840143,-500.0,0.00024657,2]
[328678256,1717693840153,-500.0,0.00024657,2]
[328678257,1717693840163,-500.0,0.00024657,2]
[328678258,1717693840173,-600.12285069,0.00024657,2]
[328678259,1717693840183,-500.0,0.00024657,2]
[328678260,1717693840194,-500.0,0.00024657,2]
[328678261,1717693840204,-622.64,0.00024657,2]
[328678262,1717693840214,-500.0,0.00024657,2]
[328678263,1717693840224,-500.0,0.00024657,2]
[328678264,1717693840234,-500.0,0.00024657,2]
[328678265,1717693840244,-500.0,0.00024657,2]
[328678266,1717693840254,-500.0,0.00024657,2]
[328678267,1717693840263,-828.43,0.00024657,2]
[328678268,1717693840273,-500.0,0.00024657,2]
[328678269,1717693840283,-500.0,0.00024657,2]
[328678270,1717693840292,-500.0,0.00024657,2]
[328678271,1717693840302,-500.0,0.00024657,2]
[328678272,1717693840312,-500.0,0.00024657,2]
[328678273,1717693840322,-686.61,0.00024657,2]
[328678274,1717693840332,-500.0,0.00024657,2]
[328678275,1717693840342,-500.0,0.00024657,2]
[328678276,1717693840351,-500.0,0.00024657,2]
[328678277,1717693840361,-500.0,0.00024657,2]
[328678278,1717693840371,-500.0,0.00024657,2]
[328678279,1717693840380,-563.83,0.00024657,2]
[328678280,1717693840394,-500.0,0.00024657,2]
[328678281,1717693840403,-500.0,0.00024657,2]
[328678282,1717693840413,-500.0,0.00024657,2]
[328678283,1717693840422,-500.0,0.00024657,2]
[328678284,1717693840432,-500.0,0.00024657,2]
[328678285,1717693840441,-500.0,0.00024657,2]
[328678286,1717693840451,-559.53090958,0.00024657,2]
[328678287,1717693840460,-500.0,0.00024657,2]
[328678288,1717693840470,-504.57259745,0.00024657,2]
[328678289,1717693840480,-500.0,0.00024657,2]
[328678290,1717693840490,-500.0,0.00024657,2]
[328678291,1717693840499,-500.0,0.00024657,2]
[328678292,1717693840509,-502.87088304,0.00024657,2]
[328678293,1717693840519,-500.0,0.00024657,2]
[328678294,1717693840528,-200.0,0.00024657,2]
[328678295,1717693840539,-394.95705111,0.00024657,2]
[328678296,1717693840549,-500.0,0.00024657,2]
[328678297,1717693840559,-500.0,0.00024657,2]
[328678298,1717693840568,-500.0,0.00024657,2]
[328678299,1717693840578,-500.0,0.00024657,2]
[328678300,1717693840588,-598.76,0.00024657,2]
[328678301,1717693840598,-500.0,0.00024657,2]
[328678302,1717693840608,-500.0,0.00024657,2]
[328678303,1717693840617,-500.0,0.00024657,2]
[328678304,1717693840627,-500.0,0.00024657,2]
[328678305,1717693840639,-500.0,0.00024657,2]
[328678306,1717693840649,-500.0,0.00024657,2]
[328678307,1717693840659,-500.0,0.00024657,2]
[328678308,1717693840668,-500.0,0.00024657,2]
[328678309,1717693840678,-500.0,0.00024657,2]
[328678310,1717693840687,-127.15560695,0.00024657,2]
[328678311,1717693840704,-372.84439305,0.00024657,2]
[328678312,1717693840714,-500.0,0.00024657,2]
[328678313,1717693840723,-500.0,0.00024657,2]
[328678314,1717693840732,-500.0,0.00024657,2]
[328678315,1717693840742,-500.0,0.00024657,2]
[328678316,1717693840752,-505.52253222,0.00024657,2]
[328678317,1717693840762,-500.0,0.00024657,2]
[328678318,1717693840771,-500.0,0.00024657,2]
[328678319,1717693840781,-500.0,0.00024657,2]
[328678320,1717693840790,-500.0,0.00024657,2]
[328678321,1717693840804,-500.0,0.00024657,2]
[328678322,1717693840814,-500.0,0.00024657,2]
[328678323,1717693840824,-500.0,0.00024657,2]
[328678324,1717693840835,-500.0,0.00024657,2]
[328678325,1717693840844,-500.0,0.00024657,2]
[328678326,1717693840853,-500.0,0.00024657,2]
[328678327,1717693840864,-500.0,0.00024657,2]
[328678328,1717693840875,-500.0,0.00024657,2]
[328678329,1717693840887,-500.0,0.00024657,2]
[328678330,1717693840897,-500.0,0.00024657,2]
[328678331,1717693840906,-500.0,0.00024657,2]
[328678332,1717693840915,-500.0,0.00024657,2]
[328678333,1717693840925,-500.0,0.00024657,2]
[328678334,1717693840934,-500.0,0.00024657,2]
[328678335,1717693840944,-500.0,0.00024657,2]
[328678336,1717693840954,-500.0,0.00024657,2]
[328678337,1717693840964,-501.31256351,0.00024657,2]
[328678338,1717693840974,-500.0,0.00024657,2]
[328678339,1717693840984,-500.0,0.00024657,2]
[328678340,1717693840993,-500.0,0.00024657,2]
[328678341,1717693841003,-500.0,0.00024657,2]
[328678342,1717693841012,-500.0,0.00024657,2]
[328678343,1717693841023,-500.0,0.00024657,2]
[328678344,1717693841032,-504.03380264,0.00024657,2]
[328678345,1717693841042,-500.0,0.00024657,2]
[328678346,1717693841051,-500.0,0.00024657,2]
[328678347,1717693841062,-500.0,0.00024657,2]
[328678348,1717693841071,-500.0,0.00024657,2]
[328678349,1717693841081,-503.11844476,0.00024657,2]
[328678350,1717693841091,-500.0,0.00024657,2]
[328678351,1717693841101,-500.0,0.00024657,2]
[328678352,1717693841110,-500.0,0.00024657,2]
[328678353,1717693841121,-500.0,0.00024657,2]
[328678354,1717693841130,-931.22,0.00024657,2]
[328678355,1717693841141,-500.0,0.00024657,2]
[328678356,1717693841150,-500.0,0.00024657,2]
[328678357,1717693841160,-500.0,0.00024657,2]
[328678358,1717693841170,-500.0,0.00024657,2]
[328678359,1717693841179,-500.0,0.00024657,2]
[328678360,1717693841189,-501.00053506,0.00024657,2]
[328678361,1717693841348,-500.0,0.00024657,2]
[328678362,1717693841363,-500.0,0.00024657,2]
[328678363,1717693841373,-501.45406621,0.00024657,2]
[328678364,1717693841384,-735.74,0.00024657,2]
[328678365,1717693841394,-500.0,0.00024657,2]
[328678366,1717693841403,-500.0,0.00024657,2]
[328678367,1717693841414,-500.0,0.00024657,2]
[328678368,1717693841424,-500.0,0.00024657,2]
[328678369,1717693841433,-519.35254762,0.00024657,2]
[328678370,1717693841443,-521.90864379,0.00024657,2]
[328678371,1717693841453,-426.10803577,0.00024657,2]
[328678372,1717693841463,-500.0,0.00024657,2]
[328678373,1717693841472,-500.0,0.00024657,2]
[328678374,1717693841482,-502.12662518,0.00024657,2]
[328678375,1717693841492,-503.14839913,0.00024657,2]
[328678376,1717693841502,-500.0,0.00024657,2]
[328678377,1717693841511,-502.37518096,0.00024657,2]
[328678378,1717693841521,-500.0,0.00024657,2]
[328678379,1717693841531,-596.87522391,0.00024657,2]
[328678380,1717693841541,-500.0,0.00024657,2]
[328678381,1717693841550,-565.17589974,0.00024657,2]
[328678382,1717693841560,-500.0,0.00024657,2]
[328678383,1717693841569,-409.41218901,0.00024657,2]
[328678384,1717693841579,-1071.72,0.00024657,2]
[328678385,1717693841589,-500.0,0.00024657,2]
[328678386,1717693841599,-500.0,0.00024657,2]
[328678387,1717693841608,-500.0,0.00024657,2]
[328678388,1717693841618,-500.0,0.00024657,2]
[328678389,1717693841627,-500.0,0.00024657,2]
[328678390,1717693841638,-500.0,0.00024657,2]
[328678391,1717693841648,-500.0,0.00024657,2]
[328678392,1717693841657,-500.0,0.00024657,2]
[328678393,1717693841667,-529.99568609,0.00024657,2]
[328678395,1717693841676,-536.66299986,0.00024657,2]
[328678396,1717693841686,-504.21619188,0.00024657,2]
[328678397,1717693841695,-599.23781724,0.00024657,2]
[328678398,1717693841704,-500.0,0.00024657,2]
[328678399,1717693841715,-500.0,0.00024657,2]
[328678400,1717693841724,-500.0,0.00024657,2]
[328678401,1717693841734,-500.0,0.00024657,2]
[328678402,1717693841743,-500.0,0.00024657,2]
[328678404,1717693841753,-500.0,0.00024657,2]
[328678405,1717693841763,-500.0,0.00024657,2]
[328678406,1717693841772,-500.0,0.00024657,2]
[328678407,1717693841782,-500.0,0.00024657,2]
[328678408,1717693841792,-500.0,0.00024657,2]
[328678409,1717693841805,-500.0,0.00024657,2]
[328678410,1717693841815,-500.0,0.00024657,2]
[328678411,1717693841825,-500.0,0.00024657,2]
[328678412,1717693841835,-501.04219233,0.00024657,2]
[328678413,1717693841845,-549.88565809,0.00024657,2]
[328678414,1717693841855,-503.67623372,0.00024657,2]
[328678415,1717693841865,-500.0,0.00024657,2]
[328678416,1717693841877,-500.0,0.00024657,2]
[328678417,1717693841888,-500.0,0.00024657,2]
[328678418,1717693841898,-503.90246276,0.00024657,2]
[328678419,1717693841908,-500.0,0.00024657,2]
[328678420,1717693841917,-500.0,0.00024657,2]
[328678421,1717693841927,-500.0,0.00024657,2]
[328678422,1717693841937,-500.0,0.00024657,2]
[328678423,1717693841947,-500.0,0.00024657,2]
[328678424,1717693841957,-500.0,0.00024657,2]
[328678425,1717693841967,-500.0,0.00024657,2]
[328678426,1717693841978,-500.0,0.00024657,2]
[328678427,1717693841987,-500.0,0.00024657,2]
[328678428,1717693841996,-502.7751143,0.00024657,2]
[328678429,1717693842006,-1141.37,0.00024657,2]
[328678430,1717693842016,-500.0,0.00024657,2]
[328678431,1717693842026,-1544.5,0.00024657,2]
[328678432,1717693842036,-563.56680716,0.00024657,2]
[328678433,1717693842045,-500.0,0.00024657,2]
[328678434,1717693842055,-502.58830659,0.00024657,2]
[328678435,1717693842065,-500.0,0.00024657,2]
[328678436,1717693842075,-500.0,0.00024657,2]
[328678438,1717693842084,-500.0,0.00024657,2]
[328678440,1717693842094,-1046.89,0.00024657,2]
[328678441,1717693842104,-412.73789675,0.00024657,2]
[328678442,1717693842113,-543.49,0.00024657,2]
[328678443,1717693842123,-831.1,0.00024657,2]
[328678444,1717693842135,-425.46895418,0.00024657,2]
[328678445,1717693842145,-500.0,0.00024657,2]
[328678446,1717693842155,-793.6,0.00024657,2]
[328678447,1717693842165,-510.61121669,0.00024657,2]
[328678448,1717693842175,-500.0,0.00024657,2]
[328678449,1717693842185,-500.0,0.00024657,2]
[328678450,1717693842196,-500.0,0.00024657,2]
[328678451,1717693842206,-443.37105284,0.00024657,2]
[328678452,1717693842217,-501.53612893,0.00024657,2]
[328678453,1717693842228,-500.0,0.00024657,2]
[328678454,1717693842237,-500.0,0.00024657,2]
[328678455,1717693842247,-500.0,0.00024657,2]
[328678456,1717693842257,-500.0,0.00024657,2]
[328678457,1717693842267,-500.0,0.00024657,2]
[328678458,1717693842277,-609.33417536,0.00024657,2]
[328678459,1717693842286,-503.61605302,0.00024657,2]
[328678460,1717693842296,-500.0,0.00024657,2]
[328678461,1717693842306,-500.0,0.00024657,2]
[328678462,1717693842317,-503.76038018,0.00024657,2]
[328678463,1717693842327,-4892.0,0.00024657,2]
[328678464,1717693842336,-500.0,0.00024657,2]
[328678465,1717693842346,-1564.74960568,0.00024657,2]
[328678466,1717693842618,-436.49039432,0.00024657,2]
[328678467,1717693842628,-500.0,0.00024657,2]
[328678468,1717693842639,-500.0,0.00024657,2]
[328678469,1717693842649,-3685.94,0.00024657,2]
[328678470,1717693842659,-502.47547324,0.00024657,2]
[328678471,1717693842668,-500.0,0.00024657,2]
[328678472,1717693842678,-738.2,0.00024657,2]
[328678473,1717693842687,-500.0,0.00024657,2]
[328678474,1717693842697,-2098.85,0.00024657,2]
[328678475,1717693842706,-1074.92,0.00024657,2]
[328678476,1717693842716,-204.28091851,0.00024657,2]
[328678477,1717693842725,-591.17,0.00024657,2]
[328678478,1717693842736,-503.92046991,0.00024657,2]
[328678479,1717693842745,-500.0,0.00024657,2]
[328678480,1717693842755,-504.20698009,0.00024657,2]
[328678481,1717693842765,-501.30920121,0.00024657,2]
[328678482,1717693842775,-500.0,0.00024657,2]
[328678483,1717693842784,-695.08,0.00024657,2]
[328678484,1717693842796,-502.83838445,0.00024657,2]
[328678485,1717693842806,-500.0,0.00024657,2]
[328678486,1717693842816,-500.0,0.00024657,2]
[328678487,1717693842826,-620.99197429,0.00024657,2]
[328678488,1717693842835,-500.0,0.00024657,2]
[328678489,1717693842845,-500.0,0.00024657,2]
[328678490,1717693842854,-2104.66,0.00024657,2]
[328678491,1717693842864,-500.0,0.00024657,2]
[328678492,1717693842876,-500.0,0.00024657,2]
[328678493,1717693842887,-500.0,0.00024657,2]
[328678494,1717693842897,-500.0,0.00024657,2]
[328678495,1717693842907,-500.0,0.00024657,2]
[328678496,1717693842916,-526.29823891,0.00024657,2]
[328678497,1717693842926,-500.0,0.00024657,2]
[328678498,1717693842936,-500.0,0.00024657,2]
[328678499,1717693842946,-500.0,0.00024657,2]
[328678500,1717693842956,-500.0,0.00024657,2]
[328678501,1717693842966,-500.0,0.00024657,2]
[328678502,1717693842975,-500.0,0.00024657,2]
[328678503,1717693842985,-500.0,0.00024657,2]
[328678504,1717693842994,-500.0,0.00024657,2]
[328678505,1717693843003,-500.0,0.00024657,2]
[328678506,1717693843013,-500.0,0.00024657,2]
[328678507,1717693843023,-8166.16,0.00024657,2]
[328678508,1717693843032,-1003.15989497,0.00024657,2]
[328678509,1717693843042,-612.8838084,0.00024657,2]
[328678510,1717693843051,-4824.75692619,0.00024657,2]
[328678511,1717693843064,-285.31307381,0.00024657,2]
[328678512,1717693843074,-502.60032372,0.00024657,2]
[328678513,1717693843084,-500.0,0.00024657,2]
[328678515,1717693843093,-500.0,0.00024657,2]
[328678517,1717693843104,-501.42032159,0.00024657,2]
[328678518,1717693843114,-500.0,0.00024657,2]
[328678520,1717693843123,-500.0,0.00024657,2]
[328678521,1717693843133,-500.0,0.00024657,2]
[328678522,1717693843143,-2156.6,0.00024657,2]
[328678523,1717693843153,-606.20221532,0.00024657,2]
[328678524,1717693843163,-500.0,0.00024657,2]
[328678525,1717693843172,-501.68160764,0.00024657,2]
[328678526,1717693843182,-500.0,0.00024657,2]
[328678527,1717693843191,-500.0,0.00024657,2]
[328678528,1717693843200,-501.92786511,0.00024657,2]
[328678529,1717693843210,-500.0,0.00024657,2]
[328678530,1717693843219,-500.0,0.00024657,2]
[328678531,1717693843229,-500.0,0.00024657,2]
[328678532,1717693843239,-500.0,0.00024657,2]
[328678533,1717693843248,-6305.15,0.00024657,2]
[328678534,1717693843258,-500.0,0.00024657,2]
[328678535,1717693843269,-500.0,0.00024657,2]
[328678536,1717693843278,-893.65,0.00024657,2]
[328678537,1717693843288,-500.0,0.00024657,2]
[328678538,1717693843298,-500.0,0.00024657,2]
[328678539,1717693843307,-500.0,0.00024657,2]
[328678540,1717693843317,-51.36674275,0.00024657,2]
[328678541,1717693843330,-448.63325725,0.00024657,2]
[328678542,1717693843339,-534.22215977,0.00024657,2]
[328678543,1717693843349,-608.94879234,0.00024657,2]
[328678544,1717693843358,-500.0,0.00024657,2]
[328678545,1717693843367,-500.0,0.00024657,2]
[328678546,1717693843376,-1227.23,0.00024657,2]
[328678547,1717693843386,-500.0,0.00024657,2]
[328678549,1717693843395,-788.73,0.00024657,2]
[328678550,1717693843404,-500.0,0.00024657,2]
[328678552,1717693843413,-500.0,0.00024657,2]
[328678554,1717693843423,-500.0,0.00024657,2]
[328678556,1717693843432,-500.0,0.00024657,2]
[328678557,1717693843441,-581.89883348,0.00024657,2]
[328678558,1717693843450,-500.0,0.00024657,2]
[328678559,1717693843459,-500.0,0.00024657,2]
[328678560,1717693843468,-500.0,0.00024657,2]
[328678561,1717693843477,-500.0,0.00024657,2]
[328678562,1717693843486,-504.76374757,0.00024657,2]
[328678563,1717693843496,-500.0,0.00024657,2]
[328678564,1717693843505,-500.0,0.00024657,2]
[328678565,1717693843514,-500.0,0.00024657,2]